Workbook

Sheet Sheet2

Sheet Sheet1
A1: [참고1] 추정금액 산출내역서
A3: ※ 제안금액 작성 유의사항
A4: 1. 민간사업자 우선집행 사업비에 한해 사업비 제안 가능 (LH 및 동서발전 우선집행사업비는 제안 불가)
A5: 2. 규격, 수량, 단가는 노란색으로 표시된 부분에 한해 제안 가능 (그 외의 수량 등은 제안 불가)
A6: 3. 민간사업자가 제안한 수량 및 단가는 공동개발협약 체결 이후 원칙적으로 조정 불가
A7: 4. 민간사업자 제안이 불가한 항목의 규격 및 수량의 경우 추후 현장여건 및 실시설계 결과 등에 따라 관련 절차를 거쳐 변경될 수 있음 | I7: 적용환율 | J7: 1297.183478 | K7: KRW/USD | L7: 4.783391304 | M7: KRW/PKR
A9: 품 명 | B9: 정산기준 | C9: 규 격 | D9: 수 량 | F9: 단 가 | H9: 금 액 (현지화) | J9: 환 율 | L9: 수량보정 | N9: 금 액 | P9: 비 고 | S9: 재료비 | T9: 노무비 | U9: 경비 | V9: 생산원가 | W9: 부가세
A11: 00 총사업비 | N11: =N13+N123+N141 -> 3.740405142e+10 | O11: KRW | S11: =S13+S21+S43+S58 ->  | T11: =T13+T21+T43+T58 ->  | U11: =U13+U21+U43+U58 ->  | V11: =V13+V21+V43+V58 ->  | W11: =W13+W21+W43+W58 -> 
A13: 01 민간사업자 우선집행 사업비 (EPC) | N13: =N15+N23+N45+N60+N93+N106 -> 1.977538169e+10 | O13: KRW | S13: =S15+S23+S45+S60 ->  | T13: =T15+T23+T45+T60 ->  | U13: =U15+U23+U45+U60 ->  | V13: =V15+V23+V45+V60 ->  | W13: =W15+W23+W45+W60 -> 
A15: 0101 실시설계 | N15: =N17 -> 1305512107 | O15: KRW | S15: =S17 -> 0 | T15: =T17 -> 1171566671 | U15: 0 | V15: 1171566671 | W15: 133945435.6
A17: 010101 실시설계 | N17: =SUM(N18:N21) -> 1305512107 | O17: KRW | S17: =SUM(S18:S21) -> 0 | T17: =SUM(T18:T21) -> 1171566671 | U17: 0 | V17: 1171566671 | W17: 133945435.6
A18: 01010101 시추조사 (양수 및 수질시험 포함) | B18: 이행공정 | C18: 정수시설 대상지(130개소) × 시추깊이(300ft) | D18: =(36+55+39)*300 -> 39000 | E18: ft | F18: 12.5 | G18: USD/공 | H18: =D18*F18 -> 487500 | I18: USD | J18: =$J$7 -> 1297.183478 | K18: KRW/USD | L18: 100 | M18: % | N18: =H18*J18*L18/100 -> 632376945.7 | O18: KRW | P18: 추후 실수량 기준으로 정산 | T18: =N18/1.13 -> 559625615.6 | V18: =SUM(S18:U18) -> 559625615.6 | W18: =N18-V18 -> 72751330.03 | X18: Service (13% 반영)
A19: 01010102 실시설계-정수시설 | B19: 이행공정 | D19: 1 | E19: 식 | F19: 416227881.3 | G19: 원/식 | H19: =D19*F19 -> 416227881.3 | I19: KRW | J19: 1 | K19: KRW/KRW | L19: 100 | M19: % | N19: =H19*J19*L19/100 -> 416227881.3 | O19: KRW | T19: =N19/1.1 -> 378388983 | V19: 378388983 | W19: =N19-V19 -> 37838898.3 | X19: 한국부가세(10%)
A20: 01010103 실시설계-가로등 | B20: 이행공정 | D20: 1 | E20: 식 | F20: 254291186.3 | G20: 원/식 | H20: =D20*F20 -> 254291186.3 | I20: KRW | J20: 1 | K20: KRW/KRW | L20: 100 | M20: % | N20: 254291186.3 | O20: KRW | T20: =N20/1.1 -> 231173805.7 | V20: 231173805.7 | W20: =N20-V20 -> 23117380.57 | X20: 한국부가세(10%)
A21: 01010104 실시설계-벽돌공장 | B21: 이행공정 | D21: 1 | E21: 식 | F21: =SUM(H64:H67)*15% -> 2362659.605 | G21: PKR/식 | H21: =D21*F21 -> 2362659.605 | I21: PKR | J21: =$L$7 -> 4.783391304 | K21: KRW/PKR | L21: =5000/21600*100 -> 23.14814815 | M21: % | N21: 2616093.845 | O21: KRW | T21: =N21/1.1 -> 2378267.132 | V21: 2378267.132 | W21: =N21-V21 -> 237826.7132 | X21: 한국부가세(10%)
A23: 0102 정수시설 | N23: =N25+N34+N42 -> 9253165000 | O23: KRW | S23: =S25+S34 ->  | T23: =T25+T34 ->  | U23: =U25+U34 ->  | V23: =V25+V34 ->  | W23: =W25+W34 -> 
A25: 010201 정수시설 공사비 | N25: =SUM(N26:N32) -> 3471947756 | O25: KRW | S25: =SUM(S26:S32) -> 2707713221 | T25: =SUM(T26:T32) -> 133448151.2 | U25: =SUM(U26:U32) -> 133448151.2 | V25: =SUM(V26:V32) -> 2974609523 | W25: =SUM(W26:W32) -> 497338233
A26: 01020101 정수시설 구매ㆍ운송ㆍ설치 (5,000TDS) | B26: 이행공정 | C26: 5,000TDS, 10,000GPD | D26: 36 | E26: 식 | F26: 5888.72 | G26: USD/식 | H26: =D26*F26 -> 211993.92 | I26: USD | J26: =$J$7 -> 1297.183478 | K26: KRW/USD | L26: 100 | M26: % | N26: =H26*J26*L26/100 -> 274995010.5 | O26: KRW | P26: 설계 완료 후 사양별 설치수량 조정 | S26: =N26/1.18 -> 233046619.1 | V26: =SUM(S26:U26) -> 233046619.1 | W26: =N26-V26 -> 41948391.43 | X26: Goods (GST18%+WHT4.5% 반영)
A27: 01020102 정수시설 구매ㆍ운송ㆍ설치 (10,000TDS) | B27: 이행공정 | C27: 10,000TDS, 10,000GPD | D27: 55 | E27: 식 | F27: 7571.21 | G27: USD/식 | H27: 416416.55 | I27: USD | J27: 1297.183478 | K27: KRW/USD | L27: 100 | M27: % | N27: 540168668.7 | O27: KRW | P27: 설계 완료 후 사양별 설치수량 조정 | S27: =N27/1.17 -> 461682622.8 | V27: 461682622.8 | W27: 78486045.88 | X27: Goods (GST18%+WHT4.5% 반영)
A28: 01020103 정수시설 구매ㆍ운송ㆍ설치 (15,000TDS) | B28: 이행공정 | C28: 15,000TDS, 10,000GPD | D28: 39 | E28: 식 | F28: 8833.08 | G28: USD/식 | H28: 344490.12 | I28: USD | J28: 1297.183478 | K28: KRW/USD | L28: 100 | M28: % | N28: 446866892.1 | O28: KRW | P28: 설계 완료 후 사양별 설치수량 조정 | S28: =N28/1.17 -> 381937514.6 | V28: 381937514.6 | W28: 64929377.48 | X28: Goods (GST18%+WHT4.5% 반영)
A29: 01020104 태양광 설비 구매ㆍ운송ㆍ설치 (5,000TDS) | B29: 이행공정 | C29: 320W×Qty 22 (보증기간 : 10년 이상) | D29: 36 | E29: 식 | F29: 7781.52 | G29: USD/식 | H29: 280134.72 | I29: USD | J29: 1297.183478 | K29: KRW/USD | L29: 100 | M29: % | N29: 363386130.5 | O29: KRW | P29: 설계 완료 후 사양별 설치수량 조정 | S29: =N29/1.17 -> 310586436.3 | V29: 310586436.3 | W29: 52799694.17 | X29: Goods (17% 반영)
A30: 01020105 태양광 설비 구매ㆍ운송ㆍ설치 (10,000TDS) | B30: 이행공정 | C30: 545W×Qty 22 (보증기간 : 10년 이상) | D30: 55 | E30: 식 | F30: 12408.38 | G30: USD/식 | H30: 682460.9 | I30: USD | J30: 1297.183478 | K30: KRW/USD | L30: 100 | M30: % | N30: 885277004 | O30: KRW | P30: 설계 완료 후 사양별 설치수량 조정 | S30: =N30/1.17 -> 756647012 | V30: 756647012 | W30: 128629992 | X30: Goods (17% 반영)
A31: 01020106 태양광 설비 구매ㆍ운송ㆍ설치 (15,000TDS) | B31: 이행공정 | C31: 545W×Qty 22 (보증기간 : 10년 이상) | D31: 39 | E31: 식 | F31: 13039.32 | G31: PKR/식 | H31: 508533.48 | I31: USD | J31: 1297.183478 | K31: KRW/USD | L31: 100 | M31: % | N31: 659661228.4 | O31: KRW | P31: 설계 완료 후 사양별 설치수량 조정 | S31: =N31/1.17 -> 563813015.7 | V31: 563813015.7 | W31: 95848212.67 | X31: Goods (17% 반영)
A32: 01020107 외부 케이지 구매ㆍ운송ㆍ설치 | B32: 이행공정 | C32: 10×15×10ft, 스틸 | D32: 130 | E32: 식 | F32: 485000 | G32: PKR/식 | H32: 63050000 | I32: PKR | J32: =$L$7 -> 4.783391304 | K32: KRW/PKR | L32: 100 | M32: % | N32: 301592821.7 | O32: KRW | T32: =N32/1.13*0.5 -> 133448151.2 | U32: =N32/1.13*0.5 -> 133448151.2 | V32: 266896302.4 | W32: 34696519.32 | X32: Service (13% 반영)
A34: 010202 정수시설 유지보수비 | N34: =SUM(N35:N40) -> 5215720484 | O34: KRW | S34: =SUM(S35:S43) ->  | T34: =SUM(T35:T43) ->  | U34: =SUM(U35:U43) ->  | V34: =SUM(V35:V43) ->  | W34: =SUM(W35:W43) -> 
A35: 01020201 필터교체 | B35: 운영실적 | C35: 130기×8개/월×12개월×10년 | D35: =D32*8*12*10 -> 124800 | E35: 개 | F35: 6 | G35: USD/개 | H35: =D35*F35 -> 748800 | I35: USD | J35: =$J$7 -> 1297.183478 | K35: KRW/USD | L35: 100 | M35: % | N35: =H35*J35*L35/100 -> 971330988.5 | O35: KRW | S35: =N35/1.13*0.8 -> 687667956.5 | T35: =N35/1.13*0.2 -> 171916989.1 | V35: =SUM(S35:U35) -> 859584945.6 | W35: =N35-V35 -> 111746042.9 | X35: Service (13% 반영)
A36: 01020202 Anti-Scalant 화학약품 | B36: 운영실적 | C36: 130기×10L/월×12개월×10년 | D36: =D32*10*12*10 -> 156000 | E36: L | F36: 8.6 | G36: USD/L | H36: 1341600 | I36: USD | J36: 1297.183478 | K36: KRW/USD | L36: 100 | M36: % | N36: 1740301354 | O36: KRW | S36: =N36/1.13*0.8 -> 1232071755 | T36: =N36/1.13*0.2 -> 308017938.8 | V36: 1540089694 | W36: 200211660.2 | X36: Service (13% 반영)
A37: 01020203 멤브레인 필름 교체 (5,000TDS) | B37: 운영실적 | C37: 130기×1회/년×10년 | D37: =D32*1*10 -> 1300 | E37: 회 | F37: 1207.5 | G37: USD/회 | H37: 1569750 | I37: USD | J37: 1297.183478 | K37: KRW/USD | L37: 100 | M37: % | N37: 2036253765 | O37: KRW | S37: =N37/1.13*0.8 -> 1441595586 | T37: =N37/1.13*0.2 -> 360398896.5 | V37: 1801994482 | W37: 234259282.7 | X37: Service (13% 반영)
A38: 01020204 정수시설 고장수리비 (수리비) | B38: 운영실적 | C38: 130기×6회/년×9년 (보증기간 1년 제외) | D38: =D32*6*9 -> 7020 | E38: 회 | F38: 7000 | G38: PKR/회 | H38: 49140000 | I38: PKR | J38: =$L$7 -> 4.783391304 | K38: KRW/PKR | L38: 100 | M38: % | N38: 235055848.7 | O38: KRW | T38: =N38/1.13 -> 208014025.4 | V38: 208014025.4 | W38: 27041823.3 | X38: Service (13% 반영)
A39: 01020205 정수시설 고장수리비 (기술자 출장비) | B39: 운영실적 | C39: 130기×6회/년×9년 (보증기간 1년 제외) | D39: =D32*6*9 -> 7020 | E39: 회 | F39: 14.5 | G39: USD/회 | H39: 101790 | I39: USD | J39: 1297.183478 | K39: KRW/USD | L39: 100 | M39: % | N39: 132040306.3 | O39: KRW | U39: =N39/1.13 -> 116849828.5 | V39: 116849828.5 | W39: 15190477.71 | X39: Service (13% 반영)
A40: 01020206 태양광 시설 고장수리비 | B40: 운영실적 | C40: 130기×6회/년×9년 (보증기간 1년 제외) | D40: =D32*6*9 -> 7020 | E40: 회 | F40: 3000 | G40: PKR/회 | H40: 21060000 | I40: PKR | J40: =$L$7 -> 4.783391304 | K40: KRW/PKR | L40: 100 | M40: % | N40: 100738220.9 | O40: KRW | T40: =N40/1.13*0.5 -> 44574434.01 | U40: =N40/1.13*0.5 -> 44574434.01 | V40: 89148868.03 | W40: 11589352.84 | X40: Service (13% 반영)
A42: 010203 정수시설 운영관리비 | N42: =SUM(N43) -> 565496759.9 | O42: KRW | S42: =SUM(S44:S56) ->  | T42: =SUM(T44:T56) ->  | U42: =SUM(U44:U56) ->  | V42: =SUM(V44:V56) ->  | W42: =SUM(W44:W56) -> 
A43: 01020301 일반관리직원 인건비 | B43: 운영실적 | C43: 130기×1인/8기×12개월×10년 | D43: =130*1/8*12*10 -> 1950 | E43: 인ㆍ월 | F43: 223.56 | G43: USD/회 | H43: =D43*F43 -> 435942 | I43: USD | J43: 1297.183478 | K43: KRW/USD | L43: 100 | M43: % | N43: =H43*J43*L43/100 -> 565496759.9 | O43: KRW | P43: 수량 조정 제안 가능 (1인당 관리 시설 개수) | T43: =N43/1.13 -> 500439610.5 | V43: =SUM(S43:U43) -> 500439610.5 | W43: =N43-V43 -> 65057149.37 | X43: Service (13% 반영)
A45: 0103 가로등 | N45: =N53+N47 -> 726593790.8 | O45: KRW | S45: =S53+S47+#REF! ->  | T45: =T53+T47+#REF! ->  | U45: =U53+U47+#REF! ->  | V45: =V53+V47+#REF! ->  | W45: =W53+W47+#REF! -> 
A47: 010301 가로등(신설) 설치 및 유지보수비 | C47: 31개 커뮤니티 내 골목길 | N47: =SUM(N48:N51) -> 197314891.3 | O47: KRW | S47: =SUM(S48:S51) -> 150247547.4 | T47: =SUM(T48:T51) -> 15239122.74 | U47: 3809780.685 | V47: 169296450.8 | W47: 28018440.5
A48: 01030101 등기구 구매 | B48: 이행공정 | C48: LED, 50W, 태양광일체형, 플라스틱 케이스, 자동점등(Photo Cells) | D48: 5000 | E48: 개 | F48: 7000 | G48: PKR/개 | H48: =D48*F48 -> 35000000 | I48: PKR | J48: =$L$7 -> 4.783391304 | K48: KRW/PKR | L48: 100 | M48: % | N48: =H48*J48*L48/100 -> 167418695.7 | O48: KRW | S48: =N48/1.17 -> 143092902.3 | V48: =SUM(S48:U48) -> 143092902.3 | W48: =N48-V48 -> 24325793.39 | X48: Goods (17% 반영)
A49: 01030102 등기구 설치 | B49: 이행공정 | C49: 구조물 벽면에 부착 | D49: 5000 | E49: 개 | F49: 500 | G49: PKR/개 | H49: =D49*F49 -> 2500000 | I49: PKR | J49: =$L$7 -> 4.783391304 | K49: KRW/PKR | L49: 100 | M49: % | N49: 11958478.26 | O49: KRW | T49: =N49/1.13*0.8 -> 8466179.3 | U49: =N49/1.13*0.2 -> 2116544.825 | V49: 10582724.12 | W49: =N49-V49 -> 1375754.136 | X49: Service (13% 반영)
A50: 01030103 LED 모듈 교체 | B50: 운영실적 | C50: LED, 50W, 5,000개×고장확율(50%) | D50: =D48*50% -> 2500 | E50: 개 | F50: 700 | G50: PKR/개 | H50: =D50*F50 -> 1750000 | I50: PKR | J50: =$L$7 -> 4.783391304 | K50: KRW/PKR | L50: 100 | M50: % | N50: 8370934.783 | O50: KRW | S50: =N50/1.17 -> 7154645.113 | V50: 7154645.113 | W50: =N50-V50 -> 1216289.669 | X50: Goods (17% 반영)
A51: 01030104 컨버터 교체 | B51: 운영실적 | C51: 기존 등기구 내 컨버터 동일사양, 5,000개×고장확율(50%) | D51: =D48*50% -> 2500 | E51: 개 | F51: 800 | G51: PKR/개 | H51: =D51*F51 -> 2000000 | I51: PKR | J51: =$L$7 -> 4.783391304 | K51: KRW/PKR | L51: 100 | M51: % | N51: 9566782.609 | O51: KRW | T51: =N51/1.13*0.8 -> 6772943.44 | U51: =N51/1.13*0.2 -> 1693235.86 | V51: 8466179.3 | W51: =N51-V51 -> 1100603.309 | X51: Service (13% 반영)
A53: 010302 가로등(교체) 설치 및 유지보수비 | C53: KMC 도로 내 기존 가로등 | N53: =SUM(N54:N58) -> 529278899.5 | O53: KRW | S53: =SUM(S54:S57) -> 375588205.7 | T53: =SUM(T54:T57) -> 8296178.419 | U53: 2074044.605 | V53: 385958428.7 | W53: 65198123.96
A54: 01030201 등기구 구매 | B54: 이행공정 | C54: LED, 150W, 태양광일체형, 알루미늄 케이스, 자동점등(Photo Cells) | D54: 2722 | E54: 개 | F54: 33000 | G54: PKR/개 | H54: =D54*F54 -> 89826000 | I54: PKR | J54: =$L$7 -> 4.783391304 | K54: KRW/PKR | L54: 100 | M54: % | N54: =H54*J54*L54/100 -> 429672907.3 | O54: KRW | S54: =N54/1.17 -> 367241801.1 | V54: =SUM(S54:U54) -> 367241801.1 | W54: =N54-V54 -> 62431106.19 | X54: Goods (17% 반영)
A55: 01030202 등기구 설치 | B55: 이행공정 | C55: 기존 가로등 등기구 교체 (기존 등주, Arm 활용) | D55: 2722 | E55: 개 | F55: 500 | G55: PKR/개 | H55: =D55*F55 -> 1361000 | I55: PKR | J55: =$L$7 -> 4.783391304 | K55: KRW/PKR | L55: 100 | M55: % | N55: 6510195.565 | O55: KRW | T55: =N55/1.13*0.8 -> 4608988.011 | U55: =N55/1.13*0.2 -> 1152247.003 | V55: 5761235.013 | W55: =N55-V55 -> 748960.5518 | X55: Service (13% 반영)
A56: 01030203 LED 모듈 교체 | B56: 운영실적 | C56: LED, 150W, 2,722개×고장확율(50%) | D56: =D54*0.5 -> 1361 | E56: 개 | F56: 1500 | G56: PKR/개 | H56: =D56*F56 -> 2041500 | I56: PKR | J56: =$L$7 -> 4.783391304 | K56: KRW/PKR | L56: 100 | M56: % | N56: 9765293.348 | O56: KRW | S56: =N56/1.17 -> 8346404.571 | V56: 8346404.571 | W56: =N56-V56 -> 1418888.777 | X56: Goods (17% 반영)
A57: 01030204 컨버터 교체 | B57: 운영실적 | C57: 기존 등기구 내 컨버터 동일사양, 2,722개×고장확율(50%) | D57: =D54*0.5 -> 1361 | E57: 개 | F57: 800 | G57: PKR/개 | H57: =D57*F57 -> 1088800 | I57: PKR | J57: =$L$7 -> 4.783391304 | K57: KRW/PKR | L57: 100 | M57: % | N57: 5208156.452 | O57: KRW | T57: =N57/1.13*0.8 -> 3687190.409 | U57: =N57/1.13*0.2 -> 921797.6022 | V57: 4608988.011 | W57: =N57-V57 -> 599168.4414 | X57: Service (13% 반영)
A58: 01030205 태양광 패널 청소 및 기본 유지관리 | B58: 운영실적 | C58: 2,722개×2회/년×10년 | D58: =D54*2*10 -> 54440 | E58: 개ㆍ회 | F58: 300 | G58: PKR/개ㆍ회 | H58: =D58*F58 -> 16332000 | I58: PKR | J58: =$L$7 -> 4.783391304 | K58: KRW/PKR | L58: 100 | M58: % | N58: =H58*J58*L58/100 -> 78122346.78 | O58: KRW
A60: 0104 저탄소벽돌 | N60: =N62+N69+N80 -> 3163605921 | S60: =S62+S80 -> 6660165981 | T60: =T62+T80 -> 193015143 | U60: =U62+U80 -> 4659377.456 | V60: =V62+V80 -> 6857840502 | W60: =W62+W80 -> 1116400353
A62: 010401 토지임차 및 공장건축 | N62: =SUM(N63:N67) -> 46672461.38 | O62: KRW | S62: =SUM(S63:S78) -> 4436030137 | T62: =SUM(T63:T78) -> 130647622.2 | U62: =SUM(U63:U78) -> 4659377.456 | V62: =SUM(V63:V78) -> 4571337136 | W62: =SUM(W63:W78) -> 738187678.8
A63: 01040101 토지임차료 | B63: 이행기간 | C63: 임차기간 : 11년 | D63: 2400 | E63: yd2 | F63: =200000/2400*12*11 -> 11000 | G63: PKR/yd2ㆍ11년 | H63: =D63*F63 -> 26400000 | I63: PKR | J63: =$L$7 -> 4.783391304 | K63: KRW/PKR | L63: =5000/21600*100 -> 23.14814815 | M63: % | N63: =H63*J63*L63/100 -> 29231835.75 | O63: KRW | P63: 수량 조정 제안 가능 | S63: =N63/1.17 -> 24984475 | V63: =SUM(S63:U63) -> 24984475 | W63: =N63-V63 -> 4247360.75 | X63: Goods (17% 반영)
A64: 01040102 공장건축 (사무동) - 골조 | B64: 이행공정 | C64: 골조공사 (철근콘크리트 또는 조적) | D64: 1361.256613 | E64: ft2 | F64: 3200 | G64: PKR/ft2 | H64: =D64*F64 -> 4356021.163 | I64: PKR | J64: =$L$7 -> 4.783391304 | K64: KRW/PKR | L64: 23.14814815 | M64: % | N64: 4823276.332 | O64: KRW | P64: 수량 조정 제안 가능 | S64: =N64/1.13*80% -> 3414708.908 | T64: =N64/1.13*20% -> 853677.2269 | V64: =SUM(S64:U64) -> 4268386.134 | W64: =N64-V64 -> 554890.1975 | X64: Service (13% 반영)
A65: 01040103 공장건축 (사무동) - 마감 | B65: 이행공정 | C65: 마감공사 등 | D65: 1361.256613 | E65: ft2 | F65: 6000 | G65: PKR/ft2 | H65: =D65*F65 -> 8167539.681 | I65: PKR | J65: =$L$7 -> 4.783391304 | K65: KRW/PKR | L65: 23.14814815 | M65: % | N65: 9043643.122 | O65: KRW | P65: 수량 조정 제안 가능 | S65: =N65/1.13*80% -> 6402579.202 | T65: =N65/1.13*20% -> 1600644.8 | V65: =SUM(S65:U65) -> 8003224.002 | W65: =N65-V65 -> 1040419.12 | X65: Service (13% 반영)
A66: 01040104 공장건축 (생산동) | B66: 이행공정 | C66: 파고라 구조물 (Steel Shade) | D66: =800*2 -> 1600 | E66: ft2 | F66: 1000 | G66: PKR/ft2 | H66: =D66*F66 -> 1600000 | I66: PKR | J66: =$L$7 -> 4.783391304 | K66: KRW/PKR | L66: 23.14814815 | M66: % | N66: 1771626.409 | O66: KRW | P66: 수량 조정 제안 가능 | S66: =N66/1.13*80% -> 1254248.785 | T66: =N66/1.13*20% -> 313562.1963 | V66: =SUM(S66:U66) -> 1567810.981 | W66: =N66-V66 -> 203815.4276 | X66: Service (13% 반영)
A67: 01040105 양생/적재공간 - 경계울타리 | B67: 이행공정 | C67: 조적 (수량 : 벽면 면적 기준) | D67: =(40+40+50+50)*2*10.76391 -> 3875.0076 | E67: ft2 | F67: 420 | G67: PKR/ft2 | H67: =D67*F67 -> 1627503.192 | I67: PKR | J67: =$L$7 -> 4.783391304 | K67: KRW/PKR | L67: 23.14814815 | M67: % | N67: 1802079.772 | O67: KRW | P67: 수량 조정 제안 가능 | S67: =N67/1.13*80% -> 1275808.688 | T67: =N67/1.13*20% -> 318952.1721 | V67: 1594760.86 | W67: =N67-V67 -> 207318.9119 | X67: Service (13% 반영)
A69: 010401 생산설비 구축 | N69: =SUM(N70:N78) -> 141706993.2 | O69: KRW | S69: =SUM(S70:S85) -> 4273915040 | T69: =SUM(T70:T85) -> 126147913.7 | U69: =SUM(U70:U85) -> 2329688.728 | V69: =SUM(V70:V85) -> 4402392643 | W69: =SUM(W70:W85) -> 718752718
A70: 01040101 벽돌제조설비 구매 | B70: 이행공정 | C70: 36,000장/일 (10,800,000장/년) | D70: 2 | E70: 식 | F70: 36463500 | G70: PKR/식 | H70: =D70*F70 -> 72927000 | I70: PKR | J70: =$L$7 -> 4.783391304 | K70: KRW/PKR | L70: 23.14814815 | M70: % | N70: =H70*J70*L70/100 -> 80749624.46 | O70: KRW | S70: =N70/1.095 -> 73743949.28 | V70: 73743949.28 | W70: =N70-V70 -> 7005675.181 | X70: Goods (세율확인 9.5%)
A71: 01040102 설비 운송 | B71: 이행공정 | C71: Loadgin, Unloading, Transportation (7회/식×2식) | D71: =7*2 -> 14 | E71: 식 | F71: 186150 | G71: PKR/식 | H71: 2606100 | I71: PKR | J71: 4.783391304 | K71: KRW/PKR | L71: 23.14814815 | M71: % | N71: 2885647.24 | O71: KRW | T71: =N71/1.095*0.2 -> 527058.8567 | U71: =N71/1.095*0.8 -> 2108235.427 | V71: =SUM(S71:U71) -> 2635294.283 | W71: 250352.9569 | X71: Service (세율확인 9.5%)
A72: 01040103 기초공사 | B72: 이행공정 | C72: Plant Foundation | D72: 2 | E72: 식 | F72: 547500 | G72: PKR/식 | H72: 1095000 | I72: PKR | J72: 4.783391304 | K72: KRW/PKR | L72: 23.14814815 | M72: % | N72: 1212456.824 | O72: KRW | T72: =N72/1.095*0.8 -> 885813.2045 | U72: =N72/1.095*0.2 -> 221453.3011 | V72: 1107266.506 | W72: 105190.318 | X72: Service (세율확인 9.5%)
A73: 01040104 Lubricant | B73: 이행공정 | C73: Hydraouli oil (750×2식) | D73: =750*2 -> 1500 | E73: 식 | F73: 876 | G73: PKR/식 | H73: 1314000 | I73: PKR | J73: 4.783391304 | K73: KRW/PKR | L73: 23.14814815 | M73: % | N73: 1454948.188 | O73: KRW | S73: =N73/1.095 -> 1328719.807 | V73: 1328719.807 | W73: 126228.3816 | X73: Goods (세율확인 9.5%)
A74: 01040105 Wooden Pallets 구매 | B74: 이행공정 | C74: 1,000개×2세트×2회 (5년단위 교체) | D74: =1000*2*2 -> 4000 | E74: 개 | F74: 8760 | G74: PKR/개 | H74: 35040000 | I74: PKR | J74: 4.783391304 | K74: KRW/PKR | L74: 23.14814815 | M74: % | N74: 38798618.36 | O74: KRW | S74: =N74/1.095 -> 35432528.18 | V74: 35432528.18 | W74: 3366090.177 | X74: Goods (세율확인 9.5%)
A75: 01040106 Wooden Bars for Pallets Stacking 구매 | B75: 이행공정 | C75: 50개×2세트×2회 (5년단위 교체) | D75: =50*2*2 -> 200 | E75: 개 | F75: 6570 | G75: PKR/개 | H75: 1314000 | I75: PKR | J75: 4.783391304 | K75: KRW/PKR | L75: 23.14814815 | M75: % | N75: 1454948.188 | O75: KRW | S75: =N75/1.095 -> 1328719.807 | V75: 1328719.807 | W75: 126228.3816 | X75: Goods (세율확인 9.5%)
A76: 01040107 Fork Lift (지게차) 구매 | B76: 이행공정 | C76: 3톤 | D76: 1 | E76: 식 | F76: 16850 | G76: USD/식 | H76: 16850 | I76: USD | J76: =$J$7 -> 1297.183478 | K76: KRW/USD | L76: 23.14814815 | M76: % | N76: 5059616.113 | O76: KRW | S76: =N76/1.17 -> 4324458.216 | V76: 4324458.216 | W76: 735157.8968 | X76: Goods (17% 반영)
A77: 01040108 4 Wheelers (적하기) 구매 | B77: 이행공정 | C77: 5.5톤 | D77: 1 | E77: 식 | F77: 8300000 | G77: PKR/식 | H77: 8300000 | I77: PKR | J77: =$L$7 -> 4.783391304 | K77: KRW/PKR | L77: 23.14814815 | M77: % | N77: 9190311.997 | O77: KRW | S77: =N77/1.17 -> 7854967.519 | V77: 7854967.519 | W77: 1335344.478 | X77: Goods (17% 반영)
A78: 01040109 벽돌 품질시험장비 | B78: 이행공정 | D78: 1 | E78: 식 | F78: 3000 | G78: USD/식 | H78: 3000 | I78: USD | J78: =$J$7 -> 1297.183478 | K78: KRW/USD | L78: 23.14814815 | M78: % | N78: 900821.8599 | O78: KRW | S78: =N78/1.17 -> 769933.2136 | V78: 769933.2136 | W78: 130888.6463 | X78: Goods (17% 반영)
A80: 010402 생산운영 | N80: =SUM(N81:N91) -> 2975226467 | O80: KRW | S80: =SUM(S81:S91) -> 2224135844 | T80: =SUM(T81:T91) -> 62367520.84 | U80: =SUM(U81:U91) -> 0 | V80: =SUM(V81:V91) -> 2286503365 | W80: =SUM(W81:W91) -> 378212674.3
A81: 01040201 인건비-생산직(현지인) | B81: 운영실적 | C81: 12인×12개월×10년 | D81: =12*12*10 -> 1440 | E81: 인ㆍ월 | F81: 39000 | G81: PKR/인ㆍ월 | H81: =D81*F81 -> 56160000 | I81: PKR | J81: =$L$7 -> 4.783391304 | K81: KRW/PKR | L81: =5000/21600*100 -> 23.14814815 | M81: % | N81: =H81*J81*L81/100 -> 62184086.96 | O81: KRW | P81: 수량 조정 제안 가능 | T81: =N81/1.13 -> 55030165.45 | V81: =SUM(S81:U81) -> 55030165.45 | W81: =N81-V81 -> 7153921.508 | X81: Service (13% 반영)
A82: 01040202 인건비-경비직(현지인) | B82: 운영실적 | C82: 2인×12개월×10년 | D82: =2*12*10 -> 240 | E82: 인ㆍ월 | F82: 31200 | G82: PKR/인ㆍ월 | H82: 7488000 | I82: PKR | J82: 4.783391304 | K82: KRW/PKR | L82: 23.14814815 | M82: % | N82: 8291211.594 | O82: KRW | P82: 수량 조정 제안 가능 | T82: =N82/1.13 -> 7337355.393 | V82: 7337355.393 | W82: 953856.2011 | X82: Service (13% 반영)
A83: 01040203 전기요금 납부 | B83: 운영실적 | C83: 12개월×10년 (월사용량 : 750KWh×2대×25일/월=37.5MWh/월) | D83: =12*10 -> 120 | E83: 월 | F83: 1700501.95 | G83: PKR/월 | H83: 204060234 | I83: PKR | J83: 4.783391304 | K83: KRW/PKR | L83: 23.14814815 | M83: % | N83: 225949062.2 | O83: KRW | P83: 수량 조정 제안 가능 | S83: =N83/1.13 -> 199954922.3 | V83: =SUM(S83:U83) -> 199954922.3 | W83: 25994139.9 | X83: Goods (17% 반영)
A84: 01040204 원자재 구매 (플라이애쉬) | B84: 운영실적 | C84: 벽돌부피(22.86mm*11.43mm*7.62mm)×배합비(40%)×밀도(1,775kg/m3)×수량(21,600만장) | D84: =(22.86*11.43*7.62)/1000000*40%*1775*216000000/1000 -> 305344.0964 | E84: 톤 | F84: 2400 | G84: PKR/톤 | H84: 732825831.4 | I84: PKR | J84: 4.783391304 | K84: KRW/PKR | L84: 23.14814815 | M84: % | N84: 811433497.5 | O84: KRW | P84: 수량 조정 제안 가능 | S84: =N84/1.17 -> 693532903.9 | V84: =SUM(S84:U84) -> 693532903.9 | W84: 117900593.7 | X84: Goods (17% 반영)
A85: 01040205 원자재 구매 (시멘트) | B85: 운영실적 | C85: 벽돌부피(22.86mm*11.43mm*7.62mm)×배합비(8%)×밀도(1,440kg/m3)×수량(21,600만장) | D85: =(22.86*11.43*7.62)/1000000*8%*1440*216000000/50 -> 990863.0959 | E85: 50kg/bag | F85: 1100 | G85: PKR/50kg | H85: 1089949406 | I85: PKR | J85: 4.783391304 | K85: KRW/PKR | L85: 23.14814815 | M85: % | N85: 1206864470 | O85: KRW | P85: 수량 조정 제안 가능 | S85: =N85/1.17 -> 1031508094 | V85: =SUM(S85:U85) -> 1031508094 | W85: 175356375.9 | X85: Goods (17% 반영)
A86: 01040206 원자재 구매 (모래) | B86: 운영실적 | C86: 벽돌부피(22.86mm*11.43mm*7.62mm)×배합비(40%)×밀도(1,500kg/m3)×수량(21,600만장) | D86: =(22.86*11.43*7.62)/1000000*40%*216000000/28.3 -> 6078.616362 | E86: CFT(28.3m3) | F86: 52000 | G86: PKR/CFT(28.3m3) | H86: 316088050.8 | I86: PKR | J86: 4.783391304 | K86: KRW/PKR | L86: 23.14814815 | M86: % | N86: 349993711.5 | O86: KRW | P86: 수량 조정 제안 가능 | S86: =N86/1.17 -> 299139924.4 | V86: =SUM(S86:U86) -> 299139924.4 | W86: 50853787.14 | X86: Goods (17% 반영)
A87: 01040207 원자재 구매 (첨가제-marble Dust) | B87: 운영실적 | C87: 벽돌부피(22.86mm*11.43mm*7.62mm)×배합비(12%)×밀도(1,602kg/m3)×수량(21,600만장) | D87: =(22.86*11.43*7.62)/1000000*12%*1602*216000000/50/1000 -> 1653.502791 | E87: 50kg/bag | F87: 0 | G87: 톤 | H87: 0 | I87: PKR | J87: 4.783391304 | K87: KRW/PKR | L87: 23.14814815 | M87: % | N87: 0 | O87: KRW | P87: 수량 조정 제안 가능 | S87: =N87/1.17 -> 0 | V87: =SUM(S87:U87) -> 0 | W87: 0 | X87: Goods (17% 반영)
A88: 01040208 운송차량 구입비 | B88: 운영실적 | C88: 18톤 트럭 | D88: 6 | E88: 대 | F88: 19600000 | G88: PKR/대 | H88: 117600000 | I88: PKR | J88: 4.783391304 | K88: KRW/PKR | L88: 23.14814815 | M88: % | N88: =H88*J88*L88/100 -> 130214541.1 | O88: KRW | P88: 수량 조정 제안 가능
A89: 01040209 차량 유지관리비 | B89: 운영실적 | C89: 구입비의 50% 가정 (보험, 세금, 소모품, 수리비 등) | D89: 6 | E89: 대 | F89: =F88*0.5 -> 9800000 | G89: PKR/대 | H89: 58800000 | I89: PKR | J89: 4.783391304 | K89: KRW/PKR | L89: 23.14814815 | M89: % | N89: 65107270.53 | O89: KRW | P89: 수량 조정 제안 가능
A90: 01040210 유류비 | B90: 운영실적 | C90: 디젤 (1,094.64km÷18km/L×300일/년×10년) | D90: =1094.63867533763/18*300*10 -> 182439.7792 | E90: L | F90: 253 | G90: PKR/L | H90: 46157264.14 | I90: PKR | J90: 4.783391304 | K90: KRW/PKR | L90: 23.14814815 | M90: % | N90: 51108392.58 | O90: KRW | P90: 수량 조정 제안 가능
A91: 01040211 운전기사 인건비 | B91: 운영실적 | C91: 12인×12개월×10년 | D91: =12*12*10 -> 1440 | E91: 인ㆍ월 | F91: 40189.2 | G91: PKR/인ㆍ월 | H91: 57872448 | I91: PKR | J91: 4.783391304 | K91: KRW/PKR | L91: 23.14814815 | M91: % | N91: 64080223.27 | O91: KRW | P91: 수량 조정 제안 가능
A93: 0105 간접노무비 | N93: =N95 -> 2818772555 | V93: =V95+V108+V111+V114+V117+V120 -> 
A95: 010501 간접노무비 | N95: =SUM(N96:N104) -> 2818772555 | O95: KRW | S95: =SUM(S96:S104) -> 0 | T95: =SUM(T96:T104) -> 2559116709 | U95: 0 | V95: 2559116709 | W95: 259655845.9 | AF95: 시중노임단가 | AG95: 기본급 | AH95: 제수당 | AI95: 상여금 | AJ95: 퇴직급여충당금 | AK95: 간접노무비 단가 (년)
A96: 01050101 현장대리인 | B96: 이행기간 | C96: 한국인, 전체기간 (11.5년×1인) | D96: =11.5*12 -> 138 | E96: 인ㆍ월 | F96: =118563540.333333/12 -> 9880295.028 | G96: KRW/인ㆍ월 | H96: =D96*F96 -> 1363480714 | I96: KRW | J96: 1 | K96: KRW/KRW | L96: 100 | M96: % | N96: =H96*J96*L96/100 -> 1363480714 | O96: KRW | P96: 수량 조정 제안 가능 | T96: =N96/1.1 -> 1239527922 | V96: =SUM(S96:U96) -> 1239527922 | W96: =N96-V96 -> 123952792.2 | X96: 한국부가세(10%) | AD96: 특급품질관리기술인 | AF96: 266470 | AG96: =AF96*20.6*12 -> 65871384 | AH96: =AG96*50% -> 32935692 | AI96: =AG96/12*4 -> 21957128 | AJ96: =(AG96+AH96+AI96)/12 -> 10063683.67 | AK96: =SUM(AG96:AJ96) -> 130827887.7 | AL96: =(AK96+AK97)/2 -> 118563540.3
A97: 01050102 기술자-정수시설/가로등 | B97: 이행기간 | C97: 한국인, 준비+공사기간 (1.5년×2인) | D97: =1.5*2*12 -> 36 | E97: 인ㆍ월 | F97: =83913813.3166667/12 -> 6992817.776 | G97: KRW/인ㆍ월 | H97: 251741440 | I97: KRW | J97: 1 | K97: KRW/KRW | L97: 100 | M97: % | N97: 251741440 | O97: KRW | P97: 수량 조정 제안 가능 | T97: =N97/1.1 -> 228855854.5 | V97: 228855854.5 | W97: 22885585.45 | X97: 한국부가세(10%) | AD97: 고급품질관리기술인 | AF97: 216510 | AG97: =AF97*20.6*12 -> 53521272 | AH97: =AG97*50% -> 26760636 | AI97: =AG97/12*4 -> 17840424 | AJ97: =(AG97+AH97+AI97)/12 -> 8176861 | AK97: =SUM(AG97:AJ97) -> 106299193
A98: 01050103 기술자-정수시설/가로등 | B98: 이행기간 | C98: 한국인, 운영기간 (10년×1인) | D98: =1*10*12 -> 120 | E98: 인ㆍ월 | F98: =83913813.3166667/12 -> 6992817.776 | G98: KRW/인ㆍ월 | H98: 839138133.2 | I98: KRW | J98: 1 | K98: KRW/KRW | L98: 100 | M98: % | N98: 839138133.2 | O98: KRW | P98: 수량 조정 제안 가능 | T98: =N98/1.1 -> 762852848.3 | V98: 762852848.3 | W98: 76285284.83 | X98: 한국부가세(10%) | AD98: 중급품질관리기술인 | AF98: 183604 | AG98: 45386908.8 | AH98: 22693454.4 | AI98: 15128969.6 | AJ98: 6934111.067 | AK98: 90143443.87 | AL98: =(AK98+AK99)/2 -> 83913813.32
A99: 01050104 기술자-정수시설/가로등 | B99: 이행기간 | C99: 현지인, 준비+공사기간 (1.5년×4인) | D99: =4*1.5*12 -> 72 | E99: 인ㆍ월 | F99: =33491*2 -> 66982 | G99: PKR/인ㆍ월 | H99: 4822704 | I99: PKR | J99: =$L$7 -> 4.783391304 | K99: KRW/PKR | L99: 100 | M99: % | N99: 23068880.38 | O99: KRW | P99: 수량 조정 제안 가능 | T99: =N99/1.13 -> 20414938.39 | V99: 20414938.39 | W99: 2653941.99 | X99: Service (13% 반영) | AD99: 초급품질관리기술인 | AF99: 158227 | AG99: 39113714.4 | AH99: 19556857.2 | AI99: 13037904.8 | AJ99: 5975706.367 | AK99: 77684182.77
A100: 01050105 기술자-정수시설/가로등 | B100: 이행기간 | C100: 현지인, 운영기간 (10년×2인) | D100: =2*10*12 -> 240 | E100: 인ㆍ월 | F100: 66982 | G100: PKR/인ㆍ월 | H100: 16075680 | I100: PKR | J100: =$L$7 -> 4.783391304 | K100: KRW/PKR | L100: 100 | M100: % | N100: 76896267.92 | O100: KRW | P100: 수량 조정 제안 가능 | T100: =N100/1.13 -> 68049794.62 | V100: 68049794.62 | W100: 8846473.301 | X100: Service (13% 반영) | AD100: * 건설업 임금실태조사 보고서 ('23년 상반기)
A101: 01050106 관리자-벽돌 | B101: 이행기간 | C101: 한국인, 전체기간 (11.5년×1인) | D101: =1*11.5*12 -> 138 | E101: 인ㆍ월 | F101: =83913813.3166667/12 -> 6992817.776 | G101: KRW/인ㆍ월 | H101: 965008853.1 | I101: KRW | J101: 1 | K101: KRW/KRW | L101: =5000/21600*100 -> 23.14814815 | M101: % | N101: 223381679 | O101: KRW | P101: 수량 조정 제안 가능 | T101: =N101/1.1 -> 203074253.6 | V101: 203074253.6 | W101: 20307425.36 | X101: 한국부가세(10%)
A102: 01050107 관리자-벽돌 | B102: 이행기간 | C102: 현지인, 전체기간 (11.5년×1인) | D102: =1*11.5*12 -> 138 | E102: 인ㆍ월 | F102: =33491*2 -> 66982 | G102: PKR/인ㆍ월 | H102: 9243516 | I102: PKR | J102: =$L$7 -> 4.783391304 | K102: KRW/PKR | L102: 23.14814815 | M102: % | N102: 10235035.66 | O102: KRW | P102: 수량 조정 제안 가능 | T102: =N102/1.13 -> 9057553.682 | V102: 9057553.682 | W102: 1177481.979 | X102: Service (13% 반영)
A103: 01050108 기술자-벽돌 | B103: 이행기간 | C103: 현지인, 전체기간 (11.5년×1인) | D103: =1*11.5*12 -> 138 | E103: 인ㆍ월 | F103: =33491*2 -> 66982 | G103: PKR/인ㆍ월 | H103: 9243516 | I103: PKR | J103: =$L$7 -> 4.783391304 | K103: KRW/PKR | L103: 23.14814815 | M103: % | N103: 10235035.66 | O103: KRW | P103: 수량 조정 제안 가능 | T103: =N103/1.13 -> 9057553.682 | V103: 9057553.682 | W103: 1177481.979 | X103: Service (13% 반영)
A104: 01050109 사무보조원 | B104: 이행기간 | C104: 현지인, 전체기간 (11.5년×1인) | D104: =1*11.5*12 -> 138 | E104: 인ㆍ월 | F104: =26000*1.2 -> 31200 | G104: PKR/인ㆍ월 | H104: 4305600 | I104: PKR | J104: =$L$7 -> 4.783391304 | K104: KRW/PKR | L104: 100 | M104: % | N104: 20595369.6 | O104: KRW | P104: 수량 조정 제안 가능 | T104: =N104/1.13 -> 18225990.8 | V104: 18225990.8 | W104: 2369378.804 | X104: Service (13% 반영)
A106: 0106 기타비용 | N106: =N108+N111+N114+N117+N120 -> 2507732316 | V106: =V108+V121+V124+V127+V131+V134 -> 
A108: 010502 기타경비 | N108: =N109 -> 699141612.3 | O108: KRW | V108: =V109 ->  | W108: =W109 -> 
A109: 01050201 기타경비 | B109: 요율적용 | C109: (정수시설+가로등+저탄소벽돌+간접노무비)×4.38% | D109: =N23+N45+N60+N93 -> 1.596213727e+10 | E109: KRW | F109: 4.38 | G109: % | N109: =D109*F109/100+L109 -> 699141612.3 | O109: KRW | P109: 요율 조정 제안 가능 | V109: =(S13+T13+U13)*4% ->  | W109: =V109*10% ->  | X109: 한국부가세(10%)
A111: 010503 협약이행보증수수료 | N111: =N112 -> 81609573.93 | O111: KRW | V111: =V112 ->  | W111: =W112 -> 
A112: 01050301 협약이행보증수수료 | B112: 요율적용 | C112: ((실시설계+정수시설+가로등+저탄소벽돌)×0.018%+420만원)×12년 | D112: =N15+N23+N45+N60 -> 1.444887682e+10 | E112: KRW | F112: =0.018*12 -> 0.216 | G112: % | L112: =4200000*12 -> 50400000 | M112: KRW | N112: =D112*F112/100+L112 -> 81609573.93 | O112: KRW | P112: 요율 조정 제안 가능 | V112: =((S13+T13+U13)*0.018%+4200000)*12 ->  | W112: =V112*10% ->  | X112: 한국부가세(10%)
A114: 010504 일반관리비 | N114: =N115 -> 666451155.2 | O114: KRW | V114: =V115 ->  | W114: =W115 -> 
A115: 01050401 일반관리비 | B115: 요율적용 | C115: (정수시설+가로등+저탄소벽돌+간접노무비+기타경비)×4% | D115: =N23+N45+N60+N93+N108 -> 1.666127888e+10 | E115: KRW | F115: 4 | G115: % | N115: =D115*F115/100+L115 -> 666451155.2 | O115: KRW | P115: 요율 조정 제안 가능 | V115: =(S13+T13+U13+V95+V109)*4% ->  | W115: =V115*10% ->  | X115: 한국부가세(10%)
A117: 010505 이윤 | N117: =N118 -> 1021824529 | O117: KRW | V117: =V118 ->  | W117: =W118 -> 
A118: 01050501 이윤 | B118: 요율적용 | C118: ((정수시설+가로등+저탄소벽돌)×50%+간접노무비+기타경비+일반관리비)×9.5% | D118: =(N23+N45+N60)*50%+N93+N108+N114 -> 1.075604768e+10 | E118: KRW | F118: 9.5 | G118: % | N118: =D118*F118/100+L118 -> 1021824529 | O118: KRW | P118: 요율 조정 제안 가능 | V118: =(T13+U13+V95+V108+V114)*9.5% ->  | W118: =V118*10% ->  | X118: 한국부가세(10%)
A120: 010506 손해보험료 | N120: =N121 -> 38705444.69 | O120: KRW | V120: =V121 ->  | W120: =W121 -> 
A121: 01050601 손해보험료 | B121: 요율적용 | C121: (정수시설+가로등+저탄소벽돌+간접노무비+기타경비+협약이행수수료+일반관리비+이윤)×0.21% | D121: =(N23+N45+N60+N93+N108+N111+N114+N117) -> 1.843116414e+10 | E121: KRW | F121: 0.21 | G121: % | N121: =D121*F121/100+L121 -> 38705444.69 | O121: KRW | P121: 요율 조정 제안 가능 | V121: =(V13+V95+V108+V111+V114+V117)*0.21% ->  | W121: =V121*10% ->  | X121: 한국부가세(10%)
A123: 02 LH 및 동서발전 우선집행 사업비 | N123: =N125+N132+N137+5 -> 5251750740 | O123: KRW
A125: 0201 용역비 | N125: =SUM(N126:N130) -> 2079527098 | O125: KRW
A126: 020101 계획/인허가 | B126: 실비정산 | D126: 1 | E126: 식 | F126: 561653000 | G126: KRW/식 | H126: =D126*F126 -> 561653000 | I126: KRW | J126: 1 | K126: KRW/KRW | L126: 100 | M126: % | N126: =H126*J126*L126/100 -> 561653000 | O126: KRW | P126: 민간사업자 제안 불가
A127: 020102 배출권시장조사 | B127: 실비정산 | D127: 1 | E127: 식 | F127: 19855000 | G127: KRW/식 | H127: =D127*F127 -> 19855000 | I127: KRW | J127: 1 | K127: KRW/KRW | L127: 100 | M127: % | N127: 19855000 | O127: KRW | P127: 민간사업자 제안 불가
A128: 020103 법률검토 (공동개발협약, 양허계약) | B128: 실비정산 | D128: 1 | E128: 식 | F128: 66000000 | G128: KRW/식 | H128: =D128*F128 -> 66000000 | I128: KRW | J128: 1 | K128: KRW/KRW | L128: 100 | M128: % | N128: =H128*J128*L128/100 -> 66000000 | O128: KRW | P128: 민간사업자 제안 불가
A129: 020104 환경관리계획 | B129: 실비정산 | D129: 1 | E129: 식 | F129: 40000000 | G129: KRW/식 | H129: =D129*F129 -> 40000000 | I129: KRW | J129: 1 | K129: KRW/KRW | L129: 100 | M129: % | N129: 40000000 | O129: KRW | P129: 민간사업자 제안 불가
A130: 020105 모니터링, 검인증, 배출권발급 | B130: 실비정산 | D130: 1 | E130: 식 | F130: 1392019098 | G130: KRW/식 | H130: =D130*F130 -> 1392019098 | I130: KRW | J130: 1 | K130: KRW/KRW | L130: 100 | M130: % | N130: 1392019098 | O130: KRW | P130: 민간사업자 제안 불가
A132: 0202 UNFCCC 행정수수료 | N132: =SUM(N133:N136) -> 368359743.5 | O132: KRW
A133: 020201 PoA-DD 등록 (SDM 전환 시) | B133: 실비정산 | D133: 1 | E133: 식 | F133: 12000 | G133: USD/식 | H133: =D133*F133 -> 12000 | I133: USD | J133: =$J$7 -> 1297.183478 | K133: KRW/USD | L133: 100 | M133: % | N133: =H133*J133*L133/100 -> 15566201.74 | O133: KRW | P133: 민간사업자 제안 불가
A134: 020202 CPA-DD 추가 | B134: 실비정산 | D134: 5 | E134: 식 | F134: 1000 | G134: USD/tCO2e | H134: =D134*F134 -> 5000 | I134: USD | J134: 1297.183478 | K134: KRW/USD | L134: 100 | M134: % | N134: 6485917.391 | O134: KRW | P134: 민간사업자 제안 불가
A135: 020203 CERs 발행 | B135: 실비정산 | D135: 1334844.415 | E135: tCO2e | F135: 0.2 | G135: USD/tCO2e | H135: =D135*F135 -> 266968.8831 | I135: USD | J135: 1297.183478 | K135: KRW/USD | L135: 100 | M135: % | N135: 346307624.4 | O135: KRW | P135: 민간사업자 제안 불가
A137: 0203 사업관리비 | N137: =SUM(N138:N139) -> 2803863893 | O137: KRW
A138: 020301 UN-Habitat 현장지원비용 | B138: 실비정산 | C138: 15년, 기후변화부 사업관리조직(PMU) 운영비용 포함 | D138: 1 | E138: 식 | F138: 1776666667 | G138: KRW/식 | H138: =D138*F138 -> 1776666667 | I138: KRW | J138: 1 | K138: KRW/KRW | L138: 100 | M138: % | N138: =H138*J138*L138/100 -> 1776666667 | O138: KRW | P138: 민간사업자 제안 불가
A139: 020302 사업관리비용 | B139: 실비정산 | C139: LH 주재원 파견ㆍ운영비용(1인×3년), LH/동서발전 본사 소모성경비 등 | D139: 1 | E139: 식 | F139: =(N13+N125+N132+N138)*4.28% -> 1027197226 | G139: KRW/식 | H139: =D139*F139 -> 1027197226 | I139: KRW | J139: 1 | K139: KRW/KRW | L139: 100 | M139: % | N139: 1027197226 | O139: KRW | P139: 민간사업자 제안 불가
A141: 03 예비비 | N141: =N143 -> 1.237691899e+10 | O141: KRW
A143: 0301 예비비 | N143: =SUM(N144:N145) -> 1.237691899e+10 | O143: KRW
A144: 030101 설계변경 예상액 | B144: 해당없음 | C144: (민간사업자 우선집행사업비 + LH 및 동서발전 우선집행사업비) × 5% | D144: 1 | E144: 식 | F144: =(N13+N123)*5% -> 1251356621 | G144: KRW/식 | H144: =D144*F144 -> 1251356621 | I144: KRW | J144: 1 | K144: KRW/KRW | L144: 100 | M144: % | N144: =H144*J144*L144/100 -> 1251356621 | O144: KRW | P144: 민간사업자 제안 불가 (사업비 제안에 따른 연동 가능)
A145: 030102 물가변동 예상액 | B145: 해당없음 | C145: 항목별 투자시기를 고려한 물가변동 예상액 | D145: 1 | E145: 식 | F145: 1.112556237e+10 | G145: KRW/식 | H145: =D145*F145 -> 1.112556237e+10 | I145: KRW | J145: 1 | K145: KRW/KRW | L145: 100 | M145: % | N145: 1.112556237e+10 | O145: KRW | P145: 민간사업자 제안 불가
